[Event "28th WSCC Women 50 2018"]
[Site "Bled"]
[Date "2018.11.27"]
[Round "9"]
[White "Makropoulou, Marina"]
[Black "Strutinskaia, Galina"]
[Result "1-0"]
[ECO "B30"]
[WhiteElo "2110"]
[BlackElo "2201"]
[Annotator "NA RC"]
[PlyCount "115"]
[EventDate "2018.11.17"]
[EventType "swiss"]
[EventCountry "SLO"]
[SourceTitle "playchess.com"]
[Source "ChessBase"]
[SourceQuality "1"]
[TimeControl "40/5400+30:1800+30"]

1. e4 {[%emt 0:00:00]} c5 {[%emt 0:00:00]} 2. Nf3 {[%emt 0:00:00]} Nc6 {[%emt 0:00:00]} 3. Bb5 {[%emt 0:00:00]} d6 {[%emt 0:00:08]} 4. O-O {[%emt 0:00:30]} Bd7 {[%emt 0:00:12]} 5. c3 {[%emt 0:02:04]} a6 {[%emt 0:06:14]} 6. Bxc6 {[%emt 0:00:46]} Bxc6 {[%emt 0:01:25]} 7. Re1 {[%emt 0:00:06]} Nf6 {[%emt 0:00:57]} 8. d4 {[%emt 0:00:12]} Bxe4 {[%emt 0:09:45]} 9. Bg5 {[%emt 0:00:11]} Bc6 {[%emt 0:05:41]} 10. Bxf6 {[%emt 0:01:25]} gxf6 {[%emt 0:00:15]} 11. Nh4 {[%emt 0:02:33] B51: Sicilian: Moscow Variation (3 Bb5+) without 3...Bd7} cxd4 {[%emt 0:04:34]} 12. cxd4 {[%emt 0:00:14]} Qa5 $146 {[%emt 0:00:22]} ({Predecessor:} 12... d5 13. Qf3 e6 14. Nc3 h5 15. Re3 Kd7 16. g3 Bh6 17. Re2 Bg5 18. Ng2 h4 {0-1 (26) Arngrimsson,D (2392)-Cheparinov,I (2696) Kallithea 2008}) 13. Nc3 {[%emt 0:00:55]} O-O-O {[%emt 0:01:12]} 14. d5 {[%emt 0:02:53]} Bd7 {[%emt 0:00:12]} 15. a3 {[%emt 0:16:02]} h5 {[%emt 0:01:12]} 16. b4 {[%emt 0:04:06]} Qb6 {[%emt 0:00:35]} 17. Na4 {[%emt 0:01:10]} Qa7 {[%emt 0:02:19]} 18. Nb2 {[%emt 0:02:03]} Kb8 {[%emt 0:02:53]} 19. a4 {[%emt 0:05:49]} Rg8 {[%emt 0:01:14]} 20. Rc1 {[%emt 0:05:05]} Rg4 {[%emt 0:01:08]} 21. Rc4 {[%emt 0:00:12]} Rc8 {[%emt 0:01:48]} 22. Rxg4 {[%emt 0:03:43]} hxg4 {[%emt 0:00:28]} 23. a5 {[%emt 0:01:50]} Bh6 {[%emt 0:05:10]} 24. Qd3 {[%emt 0:00:34]} Bg5 {[%emt 0:00:37]} 25. g3 {[%emt 0:02:00]} Bb5 {[%emt 0:06:30]} 26. Qe4 {[%emt 0:02:18]} Bd2 {[%emt 0:03:12]} 27. Rb1 {[%emt 0:04:29]} Bc3 {[%emt 0:00:43]} 28. Nd1 {[%emt 0:00:20]} Qd4 {[%emt 0:04:06]} 29. Nxc3 {[%emt 0:01:38]} Qxc3 {[%emt 0:00:03]} 30. Qxg4 {[%emt 0:05:47]} Rc4 {[%emt 0:02:16]} 31. Qg8+ {[%emt 0:03:33]} Ka7 {[%emt 0:00:05]} 32. Qd8 {[%emt 0:02:10]} Qd3 {[%emt 0:04:39]} 33. Re1 {[%emt 0:02:45]} Qxd5 {[%emt 0:02:19]} 34. Qxe7 {[%emt 0:01:14]} Rxb4 {[%emt 0:04:03]} 35. Qe3+ {[%emt 0:12:22]} Kb8 {[%emt 0:00:40]} 36. Qf3 {[%emt 0:03:29]} Qg5 {[%emt 0:04:34]} 37. Nf5 {[%emt 0:01:26]} Qd2 {[%emt 0:09:34]} 38. Qe3 {[%emt 0:01:37]} Qd5 {[%emt 0:04:02]} 39. Ne7 {[%emt 0:01:03]} Qc5 {[%emt 0:01:16]} 40. Qh6 {[%emt 0:00:00]} Rc4 {[%emt 0:00:00]} 41. Qxf6 {[%emt 0:05:45]} Rc1 {[%emt 0:02:06]} 42. Rxc1 {[%emt 0:01:06]} Qxc1+ {[%emt 0:00:02]} 43. Kg2 {[%emt 0:00:04]} Bf1+ {[%emt 0:01:16]} 44. Kf3 {[%emt 0:00:04]} Qd1+ {[%emt 0:02:39]} 45. Kf4 {[%emt 0:03:53]} Qa4+ $14 {[%emt 0:04:53]} 46. Ke3 {[%emt 0:01:17]} Qb3+ {[%emt 0:01:56]} 47. Kf4 {[%emt 0:00:31]} Qb4+ {[%emt 0:00:28]} 48. Kf3 {[%emt 0:02:31]} Qb3+ {[%emt 0:04:26]} 49. Kf4 {[%emt 0:00:27]} Qc4+ {[%emt 0:02:16]} 50. Kg5 {[%emt 0:03:13]} Qc5+ {[%emt 0:00:57]} 51. Nf5 {[%emt 0:03:14]} Qxa5 {[%emt 0:01:21]} 52. Qxd6+ {[%emt 0:02:25]} Qc7 {[%emt 0:00:17]} 53. h4 {[%emt 0:01:07]} Qxd6 {[%emt 0:02:13]} 54. Nxd6 {[%emt 0:00:05]} a5 {[%emt 0:00:03]} 55. h5 {[%emt 0:00:36]} a4 {[%emt 0:00:33]} 56. h6 {[%emt 0:00:10]} Bd3 {[%emt 0:00:25]} 57. Nf5 {[%emt 0:02:16]} f6+ {[%emt 0:00:07]} 58. Kf4 {[%emt 0:00:23]} 1-0

[Event "28th WSCC Women 50 2018"]
[Site "Bled"]
[Date "2018.11.27"]
[Round "9"]
[White "Mednikova, Svetlana"]
[Black "Kasoshvili, Tsiala"]
[Result "1/2-1/2"]
[ECO "B01"]
[WhiteElo "2099"]
[BlackElo "2029"]
[Annotator "NA"]
[PlyCount "72"]
[EventDate "2018.11.17"]
[EventType "swiss"]
[EventCountry "SLO"]
[SourceTitle "playchess.com"]
[Source "ChessBase"]
[SourceQuality "1"]
[TimeControl "40/5400+30:1800+30"]

1. e4 {[%emt 0:00:00]} d5 {[%emt 0:00:13]} 2. exd5 {[%emt 0:00:00]} Qxd5 {[%emt 0:00:02]} 3. Nc3 {[%emt 0:00:49]} Qa5 {[%emt 0:00:02]} 4. d4 {[%emt 0:00:19]} Nf6 {[%emt 0:00:06]} 5. Nf3 {[%emt 0:00:38]} Bf5 {[%emt 0:02:08]} 6. Ne5 {[%emt 0:02:24]} e6 {[%emt 0:18:28]} 7. g4 {[%emt 0:14:23]} Be4 {[%emt 0:10:11]} 8. Nc4 {[%emt 0:04:00]} Qb4 {[%emt 0:01:09]} 9. a3 {[%emt 0:01:27]} Qe7 {[%emt 0:00:20]} 10. Nxe4 {[%emt 0:01:17]} Nxe4 {[%emt 0:00:02]} 11. Qf3 {[%emt 0:01:37]} Nd6 {[%emt 0:11:48]} 12. Nxd6+ {[%emt 0:06:16]} cxd6 {[%emt 0:00:10]} 13. Bb5+ {[%emt 0:00:27]} Kd8 {[%emt 0:00:12]} 14. Bf4 {[%emt 0:03:53]} a6 {[%emt 0:04:57]} 15. Ba4 {[%emt 0:01:57]} d5 {[%emt 0:01:24]} 16. O-O-O {[%emt 0:06:34]} b5 {[%emt 0:02:22]} 17. Bb3 {[%emt 0:00:09]} Nc6 {[%emt 0:01:37]} 18. Rhe1 $14 {[%emt 0:08:35]} Qd7 {[%emt 0:00:53]} 19. g5 {[%emt 0:06:18]} Ra7 {[%emt 0:11:26]} 20. h4 {[%emt 0:00:32]} Rb7 {[%emt 0:11:31]} 21. h5 {[%emt 0:08:18]} Bd6 {[%emt 0:12:16]} 22. Bxd6 {[%emt 0:01:59]} Qxd6 {[%emt 0:00:04]} 23. Qg4 {[%emt 0:06:35]} Re7 {[%emt 0:00:24]} 24. c3 {[%emt 0:07:04]} g6 {[%emt 0:00:25]} 25. Bc2 {[%emt 0:00:38]} Kc7 {[%emt 0:00:23]} 26. Rh1 {[%emt 0:02:33]} Ree8 {[%emt 0:03:11]} 27. Rh4 {[%emt 0:00:41]} Ne7 {[%emt 0:00:54]} 28. hxg6 {[%emt 0:00:47]} hxg6 {[%emt 0:00:17]} 29. Rdh1 {[%emt 0:01:11]} Rxh4 {[%emt 0:00:17]} 30. Rxh4 {[%emt 0:01:02]} Nf5 {[%emt 0:00:42]} 31. Rh7 {[%emt 0:00:31]} Re7 {[%emt 0:00:27]} 32. Kb1 {[%emt 0:04:41]} Kb7 {[%emt 0:00:31]} 33. Rh8 {[%emt 0:02:12]} Rd7 {[%emt 0:01:52]} 34. Rh7 {[%emt 0:02:14]} Re7 {[%emt 0:00:07]} 35. Rh8 {[%emt 0:00:14]} Rd7 {[%emt 0:00:02]} 36. Rh7 {[%emt 0:02:35]} f6 1/2-1/2

[Event "28th WSCC Women 50 2018"]
[Site "Bled"]
[Date "2018.11.27"]
[Round "9"]
[White "Lauterbach, Ingrid"]
[Black "Grabuzova, Tatiana"]
[Result "0-1"]
[ECO "C00"]
[WhiteElo "2027"]
[BlackElo "2326"]
[Annotator "ChessBase"]
[PlyCount "62"]
[EventDate "2018.11.17"]
[EventType "swiss"]
[EventCountry "SLO"]
[SourceTitle "playchess.com"]
[Source "ChessBase"]
[SourceQuality "1"]
[TimeControl "40/5400+30:1800+30"]

1. e4 {[%emt 0:00:00]} e6 {[%emt 0:00:00]} 2. d3 {[%emt 0:00:00]} d5 {[%emt 0:00:00]} 3. Nd2 {[%emt 0:00:00]} c5 {[%emt 0:00:08]} 4. Ngf3 {[%emt 0:00:10]} Nc6 {[%emt 0:00:11]} 5. g3 {[%emt 0:00:44]} Nf6 {[%emt 0:00:13]} 6. Bg2 {[%emt 0:00:19]} Be7 {[%emt 0:00:11]} 7. O-O {[%emt 0:00:35]} b6 {[%emt 0:00:15]} 8. Re1 {[%emt 0:00:26]} Bb7 {[%emt 0:00:07]} 9. e5 {[%emt 0:03:33]} Nd7 {[%emt 0:00:14]} 10. c3 {[%emt 0:01:24]} Qc7 {[%emt 0:05:12]} 11. Qe2 {[%emt 0:00:45]} h6 {[%emt 0:08:44]} 12. Nf1 {[%emt 0:02:48]} g5 {[%emt 0:00:26]} 13. h3 {[%emt 0:00:19]} O-O-O {[%emt 0:02:32]} 14. d4 {[%emt 0:05:54]} Kb8 {[%emt 0:14:16]} 15. Be3 {[%emt 0:02:22]} Rc8 {[%emt 0:02:22]} 16. a3 {[%emt 0:04:32]} Na5 {[%emt 0:10:54]} 17. b4 {[%emt 0:12:05]} cxd4 {[%emt 0:04:02]} 18. cxd4 {[%emt 0:02:16]} Nc4 {[%emt 0:02:26]} 19. Rec1 {[%emt 0:02:42]} b5 {[%emt 0:13:22]} 20. Ne1 {[%emt 0:00:46]} Ndb6 {[%emt 0:06:06]} 21. Nd3 {[%emt 0:01:45]} Rcf8 {[%emt 0:03:28]} 22. f4 {[%emt 0:05:47]} f6 {[%emt 0:06:01]} 23. exf6 {[%emt 0:05:27]} Bxf6 {[%emt 0:00:13]} 24. fxg5 {[%emt 0:00:32]} hxg5 {[%emt 0:00:18]} 25. Bf2 {[%emt 0:02:09]} Qg7 {[%emt 0:01:34]} 26. Nc5 {[%emt 0:04:23]} Bxd4 {[%emt 0:03:46]} 27. Bxd4 {[%emt 0:01:50]} Qxd4+ {[%emt 0:00:05]} 28. Kh2 {[%emt 0:00:09]} Rf2 {[%emt 0:03:37]} 29. Nb3 {[%emt 0:03:07]} Qf6 {[%emt 0:02:23]} 30. Qd3 {[%emt 0:03:43]} d4 {[%emt 0:01:02]} 31. Rc2 {[%emt 0:03:12]} Bxg2 {[%emt 0:00:24]} 0-1

[Event "28th WSCC Women 50 2018"]
[Site "Bled"]
[Date "2018.11.28"]
[Round "10"]
[White "Grabuzova, Tatiana"]
[Black "Bogumil, Tatiana"]
[Result "1/2-1/2"]
[ECO "A59"]
[WhiteElo "2326"]
[BlackElo "2114"]
[Annotator "RC"]
[PlyCount "82"]
[EventDate "2018.11.17"]
[EventType "swiss"]
[EventCountry "SLO"]
[SourceTitle "playchess.com"]
[Source "ChessBase"]
[SourceQuality "1"]
[TimeControl "40/5400+30:1800+30"]

1. d4 Nf6 2. c4 c5 3. d5 b5 4. cxb5 a6 5. bxa6 g6 6. Nc3 Bxa6 7. e4 Bxf1 8. Kxf1 d6 9. g3 Bg7 10. Kg2 O-O 11. Nf3 Nbd7 12. a4 Qa5 13. Bd2 Ng4 14. Nb5 Qb6 15. Bc3 f6 16. Qe2 Qb7 17. Nd2 h5 18. h3 Nh6 19. Nc4 Nb6 20. Nxb6 Qxb6 21. g4 h4 22. f4 Nf7 23. Qf2 Bh6 24. Bd2 Qb7 25. Qxh4 g5 26. fxg5 Bxg5 27. Qe1 Rxa4 28. Rxa4 Qxb5 29. Ra2 Bxd2 30. Qxd2 Qc4 31. Ra3 Qxe4+ 32. Kh2 Qe5+ 33. Kg1 Rb8 34. Rh2 Qe4 35. Re2 Qb1+ 36. Qe1 Qxe1+ 37. Rxe1 Ne5 38. Re2 Rb4 39. Rg3 Kf7 40. g5 f5 41. Rge3 Kg6 1/2-1/2

[Event "28th WSCC Women 50 2018"]
[Site "Bled"]
[Date "2018.11.28"]
[Round "10"]
[White "Strutinskaia, Galina"]
[Black "Ankudinova, Yelena"]
[Result "1/2-1/2"]
[ECO "E06"]
[WhiteElo "2201"]
[BlackElo "2107"]
[Annotator "NA RC"]
[PlyCount "31"]
[EventDate "2018.11.17"]
[EventType "swiss"]
[EventCountry "SLO"]
[SourceTitle "playchess.com"]
[Source "ChessBase"]
[SourceQuality "1"]
[TimeControl "40/5400+30:1800+30"]

{[%evp 14,30,40,32767,32767,32767,44,37,64,32767,32767,32767,45,32767,32767,26,12,15,13]} 1. c4 e6 2. g3 d5 3. Bg2 Nf6 4. Nf3 c5 5. cxd5 Nxd5 6. O-O Nc6 7. d4 Be7 8. dxc5 Bxc5 9. Qc2 Qe7 {E06: Closed Catalan: Early deviations} 10. a3 {LiveBook: 13 Games} (10. Nc3 Nxc3 11. Qxc3 O-O 12. Bf4 f6 13. Rac1 Bb6 14. Be3 Bxe3 15. Qxe3 e5 16. Nd2 Nd4 17. Nb3 Nxb3 18. Qxb3+ Be6 19. Qa4 Rfd8 {½-½ (47) Ponomariov,R (2699)-Lu,S (2638) Danzhou 2017}) 10... a5 11. Nc3 $146 ({Predecessor:} 11. e4 Nc7 12. e5 h6 13. Nc3 Bd7 14. Ne4 Na6 15. Be3 Bxe3 16. Nd6+ Kf8 17. fxe3 {1-0 (33) Hess,M (2326)-Demir,B (2069) Tegernsee 2018}) 11... Nxc3 12. Qxc3 e5 13. Rd1 f6 14. Be3 Bxe3 15. Qxe3 Be6 16. Rac1 1/2-1/2

[Event "28th WSCC Women 50 2018"]
[Site "Bled"]
[Date "2018.11.28"]
[Round "10"]
[White "Birkholz, Olga"]
[Black "Lauterbach, Ingrid"]
[Result "1-0"]
[ECO "A48"]
[WhiteElo "2061"]
[BlackElo "2027"]
[Annotator "NA RC"]
[PlyCount "101"]
[EventDate "2018.11.17"]
[EventType "swiss"]
[EventCountry "SLO"]
[SourceTitle "playchess.com"]
[Source "ChessBase"]
[SourceQuality "1"]
[TimeControl "40/5400+30:1800+30"]

1. d4 Nf6 2. Nf3 d6 3. h3 Nbd7 4. Bf4 c5 5. e3 g6 6. Nbd2 Bg7 7. c3 O-O 8. Be2 b6 9. O-O Bb7 10. Re1 Re8 {A48: 1 d4 Nf6 2 Nf3 g6: Torre, London and Colle Systems} (10... a6 11. a4 cxd4 12. exd4 Nd5 13. Bh2 Bh6 14. Bf1 a5 15. Nc4 N7f6 16. Na3 Bf4 17. Bxf4 Nxf4 18. g3 N4d5 19. Bg2 {½-½ (64) Kamsky,G (2741)-Svidler,P (2747) Loo 2013}) 11. Bh2 d5 12. Ne5 Nxe5 13. Bxe5 Nd7 14. Bxg7 Kxg7 15. Nf3 f6 $146 ({Predecessor:} 15... Qc7 16. Rc1 e5 17. Qc2 e4 18. Nd2 {0-1 (46) Likatavicius,R (1278)-Persanyi,B (2059) Kouty nad Desnou 2016}) 16. c4 e5 17. dxc5 Nxc5 18. cxd5 Qxd5 19. b4 Ne6 20. Qa4 Bc6 21. b5 Nc5 22. Qc4 Qxc4 23. Bxc4 Bxf3 24. gxf3 Red8 25. Red1 Rxd1+ 26. Rxd1 Kf8 27. Kf1 Ke7 28. Ke2 Rd8 29. Rc1 Rd7 30. Rc2 f5 31. Rc1 Kf6 32. h4 h6 33. Rc2 $11 g5 34. hxg5+ Kxg5 35. Rc1 Kf6 36. Rh1 Rh7 37. Bg8 Rh8 38. Bc4 h5 39. f4 Ne4 40. fxe5+ Kxe5 41. Rh4 Kf6 42. f4 Kg6 43. Rh2 h4 44. Bd3 Nf6 45. Rg2+ Ng4 46. Rxg4+ Kf6 47. Rg2 h3 48. Rh2 Ke6 49. Kf3 Rd8 50. Bc4+ Kd6 51. Rd2+ {Kd5 Ke4} 1-0

[Event "28th WSCC Women 50 2018"]
[Site "Bled"]
[Date "2018.11.28"]
[Round "10"]
[White "Kasoshvili, Tsiala"]
[Black "Krasenkova, Ilena"]
[Result "1-0"]
[ECO "A32"]
[WhiteElo "2029"]
[BlackElo "2144"]
[Annotator "NA RC"]
[PlyCount "165"]
[EventDate "2018.11.17"]
[EventType "swiss"]
[EventCountry "SLO"]
[SourceTitle "playchess.com"]
[Source "ChessBase"]
[SourceQuality "1"]
[TimeControl "40/5400+30:1800+30"]

1. d4 d5 2. c4 e6 3. Nf3 Nf6 4. e3 c5 5. Nc3 cxd4 6. Nxd4 Be7 {A32: Symmetrical English: 2 Nf3 Nf6 3 d4 cxd4 4 Nxd4 e6} (6... Nc6 7. cxd5 Nxd5 8. Nxc6 bxc6 9. Bd2 Be7 10. Qc2 O-O 11. Be2 Rb8 12. a3 Nxc3 13. Bxc3 Qb6 14. Bd3 h6 {1-0 (40) Nakamura,H (2787)-Carlsen,M (2853) chess.com INT 2016}) 7. cxd5 exd5 8. Bb5+ Bd7 9. Bxd7+ Qxd7 10. O-O O-O 11. Qf3 $146 ({Predecessor:} 11. b3 Nc6 12. Bb2 Rfe8 13. Rc1 Rac8 14. Nxc6 bxc6 {½-½ (28) Jimenez Zerquera,E-Yepez Obando,O Pichincha 1969}) 11... Nc6 12. Rd1 Bb4 13. Nce2 Rfd8 14. Bd2 Bxd2 15. Rxd2 Ne4 16. Rdd1 g6 17. Qf4 Rac8 18. a3 Ne7 19. h4 Qc7 20. Qxc7 Rxc7 21. Rac1 Rxc1 22. Rxc1 Rd7 23. Nf4 a6 24. Rc2 Kg7 25. Kf1 Kf6 26. Ke2 h6 27. Kd3 Kg7 28. g4 Nf6 29. f3 g5 30. hxg5 hxg5 31. Nfe2 Kg6 32. Ng3 Ne8 33. b3 Nd6 34. Rc5 Kf6 35. Nh5+ Kg6 36. Ng3 Kf6 37. a4 Kg6 38. a5 Kf6 39. Nge2 Kg6 40. Nc3 Ne8 41. Na4 Kf6 42. Nb6 Rd8 43. f4 gxf4 44. exf4 Kg6 45. Rc2 Kg7 46. g5 Kg6 47. Rh2 Nd6 48. Rh6+ Kg7 49. Na4 (49. Re6 $5 Kf8 50. Re2 $14) 49... Ne4 (49... Ng6 $11 {keeps the balance.}) 50. Nc3 Nc5+ 51. Ke3 Re8 52. Kf3 Rc8 53. Nce2 Ne4 54. Rb6 Rc7 55. Kg4 Nf2+ 56. Kg3 Ne4+ 57. Kh4 Kh7 58. f5 Rd7 59. Rh6+ Kg8 60. Kg4 Rd6 (60... Rd8 $16 {was worth a try.} 61. Nf4 Nf2+ 62. Kg3 Ne4+ 63. Kh4 Rd7) 61. f6 Ng6 62. Nf5 Nxf6+ 63. gxf6 Rxf6 64. Ned4 Ne5+ 65. Kf4 Nd7 66. Rxf6 Nxf6 67. Nd6 Nd7 68. Nxb7 Kf8 69. Kf5 Ke7 $18 70. Nc6+ Ke8 71. Nd6+ Kf8 72. b4 Kg7 73. Ne8+ Kf8 74. Nc7 d4 75. Ke4 Kg7 76. Kxd4 f5 77. Nxa6 Kf6 78. Nc5 Nxc5 79. Kxc5 f4 80. Nd4 Ke7 81. a6 f3 82. Nxf3 Kd7 83. a7 1-0

[Event "28th WSCC Women 50 2018"]
[Site "Bled"]
[Date "2018.11.29"]
[Round "11"]
[White "Bogumil, Tatiana"]
[Black "Mednikova, Svetlana"]
[Result "1/2-1/2"]
[ECO "E01"]
[WhiteElo "2114"]
[BlackElo "2099"]
[Annotator "NA RC"]
[PlyCount "34"]
[EventDate "2018.11.17"]
[EventType "swiss"]
[EventCountry "SLO"]
[SourceTitle "playchess.com"]
[Source "ChessBase"]
[SourceQuality "1"]
[TimeControl "40/5400+30:1800+30"]

{[%evp 9,30,-33,35,31,20,32767,32767,26,32767,40,32767,32767,32767,-5,32767,32767,32767,-17,0,0,0,32767,-37]} 1. Nf3 Nf6 2. g3 d5 3. c4 c5 4. Bg2 Nc6 5. O-O e6 6. cxd5 Nxd5 {LiveBook: 225 Games} 7. d4 Nc7 8. Be3 (8. dxc5 $16 Bxc5 9. Qxd8+ Nxd8 10. Nc3) 8... Nd5 9. Bg5 f6 10. e4 Nc7 11. d5 ({White should try} 11. Be3 $14) 11... exd5 12. exd5 Qxd5 13. Bd2 Be7 14. Nc3 Qf7 15. Bf4 Ne6 $15 16. Bd6 O-O 17. Bxe7 Nxe7 1/2-1/2